bitfinex/quotes_ETHUSD_20241009
["timestamp","ask_amount","ask_price","bid_price","bid_amount"]
[1728510261436,2.13098143,2374.8,2374.5,4.2114]
[1728510262541,14.55008143,2374.9,2374.5,4.2113]
[1728510262967,1.32008143,2374.9,2374.5,4.2113]
[1728510263264,1.32008143,2374.9,2374.4,1.80330443]
[1728510263462,1.76010857,2375.0,2374.4,1.80330443]
[1728510263463,1.32008143,2375.0,2374.6,4.21108]
[1728510263668,4.21054,2375.0,2374.6,4.21108]
[1728510263820,5.53053143,2375.1,2374.6,8.42218]
[1728510264022,4.21057,2375.0,2374.5,4.21139]
[1728510264327,4.21057,2375.0,2374.5,4.710339]
[1728510264962,4.21057,2375.0,2374.6,4.21121]
[1728510265457,10.50602143,2375.2,2374.6,4.21121]
[1728510265779,10.50602143,2375.2,2374.5,4.710339]
[1728510265780,4.97441,2374.9,2374.5,4.710339]
[1728510266061,9.18521,2374.9,2374.5,0.498949]
[1728510267260,0.05644333,2374.8,2374.5,0.498949]
[1728510267435,0.05644333,2374.8,2374.5,0.49102232]
[1728510270378,0.05644333,2374.8,2374.4,4.21157]
[1728510271993,0.05644333,2374.8,2374.3,4.2117]
[1728510271994,4.64875726,2376.1,2375.5,0.7729]
[1728510272145,1.32008143,2376.3,2375.7,4.20928]
[1728510272146,0.7888,2376.0,2375.7,4.20928]
[1728510272343,0.7888,2376.0,2375.6,4.20932]
[1728510272645,0.7888,2376.0,2375.6,8.41869]
[1728510272848,0.7888,2376.0,2375.6,4.20932]
[1728510273785,0.7888,2376.0,2375.6,8.41869]
[1728510273985,0.7888,2376.0,2375.6,9.337849]
[1728510274183,9.17836,2376.3,2375.7,4.20926]
[1728510274355,4.96998,2376.3,2375.7,4.20926]
[1728510274556,4.20844,2376.2,2375.6,5.128479]
[1728510274773,4.20844,2376.2,2375.6,9.337849]
[1728510275076,4.20844,2376.2,2375.6,5.128479]
[1728510276392,4.96998,2376.3,2375.6,5.128479]
[1728510276547,4.20859,2376.1,2375.6,5.128479]
[1728510277251,4.20859,2376.1,2375.6,4.20932]
[1728510277660,0.7616,2376.4,2375.9,4.20881]
[1728510277859,4.20774,2376.6,2376.1,4.20846]
[1728510278673,4.20774,2376.6,2376.2,4.20838]
[1728510278874,8.41554,2376.6,2376.1,4.20846]
[1728510279074,4.20774,2376.6,2376.1,8.41688]
[1728510279316,4.96913,2376.7,2376.2,4.20827]
[1728510279596,0.0536456,2376.6,2376.2,4.20827]
[1728510280485,0.0536456,2376.6,2376.1,4.20842]
[1728510280656,0.8167,2376.5,2376.1,4.20842]
[1728510281174,0.0536456,2376.4,2375.9,8.41755]
[1728510281363,4.2617056,2376.4,2375.9,5.131105]
[1728510281558,4.2617056,2376.4,2375.9,4.20876]
[1728510281767,0.0536456,2376.4,2375.9,4.20876]
[1728510282096,4.2616956,2376.4,2375.9,4.20876]
[1728510282611,4.20825,2376.3,2375.9,4.20876]
[1728510282766,0.0536456,2376.4,2376.2,0.7707]
[1728510283093,18.22449,2377.0,2376.2,1.46145441]
[1728510283094,4.20774,2376.6,2376.2,1.46145441]
[1728510283494,4.20727,2376.9,2376.3,4.29234337]
[1728510283700,4.20734,2376.8,2376.3,4.29234337]
[1728510286594,4.20761,2376.7,2376.2,4.97908]
[1728510286815,4.20761,2376.7,2376.2,4.97901]
[1728510287016,4.20761,2376.7,2376.2,9.685221]
[1728510288275,4.20761,2376.7,2376.2,5.476911]
[1728510288488,4.20761,2376.7,2376.2,5.476901]
[1728510288693,4.20761,2376.7,2376.3,0.08415498]
[1728510289378,4.20761,2376.7,2376.3,4.29235498]
[1728510289804,4.20761,2376.7,2376.3,4.2082]
[1728510290114,4.20761,2376.7,2376.3,4.42373121]
[1728510290818,0.8326,2376.6,2376.3,4.50788585]
[1728510290976,4.20761,2376.7,2376.3,5.41379443]
[1728510291402,0.05327147,2376.6,2376.3,5.41379443]
[1728510291578,0.05327147,2376.6,2376.3,6.27744802]
[1728510291780,0.8326,2376.8,2376.3,6.27744802]
[1728510292022,0.05327147,2376.5,2376.3,6.19329443]
[1728510292184,5.03994,2376.8,2376.4,1.08994954]
[1728510292381,4.20753,2376.7,2376.3,0.99503121]
[1728510292586,8.41519,2376.7,2376.3,0.99503121]
[1728510292808,8.41519,2376.7,2376.3,0.7795]
[1728510293124,4.20753,2376.7,2376.3,0.7795]
[1728510293897,5.03995,2376.8,2376.3,0.86307797]
[1728510294219,5.03995,2376.8,2376.4,4.7649579]
[1728510295306,4.20698,2377.0,2376.6,4.20768]
[1728510297442,0.05337692,2376.9,2376.6,4.20768]
[1728510299485,0.05337692,2376.9,2376.5,39.20778]
[1728510299763,0.05337692,2376.9,2376.5,4.20778]
[1728510299964,0.05337692,2376.9,2376.5,5.18300379]
[1728510300526,0.05337692,2376.9,2376.5,5.26714955]
[1728510300822,0.05337692,2376.9,2376.5,5.18300379]
[1728510302549,0.88597692,2376.9,2376.5,0.97522379]
[1728510302731,4.20735,2376.8,2376.5,0.97522379]
[1728510303069,4.26108443,2376.7,2376.4,0.5569279]
[1728510303264,4.26108443,2376.7,2376.3,0.7795]
[1728510303430,4.20775,2376.6,2376.3,0.7795]
[1728510303764,0.05356552,2376.5,2376.3,0.7795]
[1728510304163,0.05356552,2376.5,2376.2,4.706181]
[1728510305236,5.09402552,2376.5,2376.1,0.7795]
[1728510305432,9.30204552,2376.5,2376.0,4.20861]
[1728510305656,5.09402552,2376.5,2376.0,4.20861]
[1728510306062,9.30202552,2376.5,2376.0,4.20861]
[1728510306667,4.20812,2376.4,2375.9,4.2089]
[1728510306861,4.20812,2376.4,2375.9,8.31154826]
[1728510307334,4.20812,2376.4,2375.9,4.2089]
[1728510307871,4.20812,2376.4,2376.0,4.20873]
[1728510308345,4.20812,2376.4,2375.9,4.2089]
[1728510308663,4.20812,2376.4,2375.9,8.41774]
[1728510309266,4.20812,2376.4,2375.9,4.20884]
[1728510309474,4.20812,2376.4,2376.0,4.2087]
[1728510313148,4.20806,2376.4,2376.0,4.2087]
[1728510313294,0.8326,2376.3,2375.9,4.20884]
[1728510313897,0.8326,2376.3,2375.7,6.82709902]
[1728510314197,5.04095,2376.3,2375.7,3.3219451]
[1728510314496,9.24931,2376.3,2375.7,1.48350608]
[1728510314657,5.04095,2376.3,2375.7,1.48350608]
[1728510315555,5.04095,2376.3,2375.7,5.69278608]
[1728510316186,5.04095,2376.3,2375.8,0.08417353]
[1728510317277,5.04095,2376.3,2375.7,5.69278608]
[1728510317478,9.24927,2376.3,2375.7,5.69278608]
[1728510317799,9.24924,2376.3,2375.7,5.7769607]
[1728510317957,9.24924,2376.3,2375.7,5.69278608]
[1728510318382,5.04092,2376.3,2375.7,5.69278608]
[1728510318566,0.05331584,2376.2,2375.7,5.69278608]
[1728510319205,0.05331584,2376.2,2375.7,5.77099872]
[1728510319975,0.05331584,2376.2,2375.9,0.7852]
[1728510320299,0.05331584,2376.1,2375.9,0.06314662]
[1728510320511,8.41668,2376.3,2375.9,0.06314662]
[1728510320816,0.05331584,2376.0,2375.7,0.7852]
[1728510321012,4.9614,2376.2,2375.6,4.42234182]
[1728510321013,0.753,2376.2,2375.6,0.21296182]
[1728510321169,0.05331584,2375.9,2375.5,4.99474]
[1728510321509,0.05331584,2375.8,2375.5,11.01315625]
[1728510321663,4.20858,2376.1,2375.5,11.01315625]
[1728510321862,0.05331584,2376.0,2375.5,6.80361625]
[1728510322066,0.753,2375.9,2375.5,6.80361625]
[1728510322506,0.05331584,2375.8,2375.5,6.80361625]
[1728510323596,4.96158,2376.1,2375.5,6.80361625]
[1728510323782,0.05331584,2375.7,2375.5,6.80361625]
[1728510323984,4.96158,2376.1,2375.5,2.59407625]
[1728510324306,4.20894,2375.9,2375.3,5.07131116]
[1728510324508,4.20894,2375.9,2375.4,0.08418703]
[1728510324878,0.05331584,2375.8,2375.4,0.08418703]
[1728510325276,0.7673,2375.7,2375.4,0.08418703]
[1728510325476,0.7673,2375.7,2375.3,0.7656]
[1728510325713,0.05331584,2375.6,2375.1,5.83730116]
[1728510326017,0.05331584,2375.6,2375.1,4.97582]
[1728510326176,4.26281584,2375.6,2375.1,0.7656]
[1728510326985,4.26281584,2375.6,2375.0,4.2947199]
[1728510327187,0.7759,2375.5,2375.0,4.2947199]
[1728510327380,0.82874973,2375.5,2375.0,5.54858539]
[1728510329112,0.82874973,2375.5,2375.0,6.41006655]
[1728510329291,0.82874973,2375.5,2375.0,6.72115097]
[1728510329614,0.82874973,2375.5,2375.0,6.32586665]
[1728510331030,4.20981,2375.4,2374.9,1.61258116]
[1728510331315,0.05242786,2375.3,2374.9,1.61258116]
[1728510332591,0.05242786,2375.3,2374.9,0.86148116]
[1728510332795,0.05242786,2375.3,2374.8,9.55828262]
[1728510332994,0.05242786,2375.3,2374.8,11.08162279]
[1728510335382,0.7666,2375.2,2374.8,1.0735279]
[1728510335693,0.7666,2375.2,2374.6,5.50216289]
[1728510335694,0.81878358,2375.2,2374.6,5.07258116]
[1728510335893,6.78528095,2375.2,2374.6,5.07258116]
[1728510336082,8.06045278,2375.2,2374.6,5.07258116]
[1728510336288,8.06045278,2375.2,2374.6,5.15679498]
[1728510336514,8.06045278,2375.2,2374.6,9.36794498]
[1728510336784,8.06045278,2375.2,2374.6,5.07258116]
[1728510336785,0.7599,2375.1,2374.6,5.07258116]
[1728510336985,5.0223936,2375.1,2374.7,0.86148116]
[1728510337295,5.0223936,2375.1,2374.6,0.86148116]
[1728510337502,5.0223936,2375.1,2374.5,5.07288116]
[1728510337503,0.7599,2375.0,2374.5,5.07288116]
[1728510337983,0.0521336,2374.9,2374.5,5.07288116]
[1728510339131,0.0521336,2374.9,2374.5,0.86148116]
[1728510339132,0.7988,2374.8,2374.5,0.86148116]
[1728510339288,2.60708546,2374.8,2374.3,4.21175]
[1728510339495,2.55510737,2374.7,2374.2,4.2118]
[1728510339733,0.05197253,2374.6,2374.2,4.2118]
[1728510339914,0.05197253,2374.6,2374.2,4.42385299]
[1728510340243,0.8326,2374.5,2374.2,0.21205299]
[1728510340437,0.8326,2374.3,2374.2,0.21205299]
[1728510340593,5.04436,2374.3,2374.2,0.21205299]
[1728510340793,9.30774817,2374.3,2373.8,0.86148116]
[1728510340993,0.8092,2373.9,2373.7,0.86148116]
[1728510341190,0.8092,2373.9,2373.3,1.17335551]
[1728510341191,6.77807737,2373.9,2373.3,1.17335551]
[1728510341436,0.05134481,2373.8,2373.3,0.86148116]
[1728510341736,6.02039218,2373.8,2373.2,0.86148116]
[1728510341893,1.75630737,2373.7,2373.2,2.16921728]
[1728510342094,0.86052814,2373.6,2373.2,2.16921728]
[1728510342315,0.86052814,2373.6,2373.2,6.38290728]
[1728510343631,0.86052814,2373.6,2373.2,6.41533976]
[1728510344005,0.86052814,2373.6,2373.2,6.38290728]
[1728510344835,0.86052814,2373.6,2373.2,5.55778785]
[1728510345037,0.86052814,2373.6,2373.2,6.41926901]
[1728510345241,0.86052814,2373.6,2373.2,5.55778785]
[1728510345404,0.86052814,2373.6,2373.2,6.38290728]
[1728510345801,0.86052814,2373.6,2373.2,0.86148116]
[1728510346505,0.05132814,2373.6,2373.2,5.07518116]
[1728510346708,0.05132814,2373.6,2373.3,0.7536]
[1728510347016,5.96896737,2373.8,2373.3,0.7536]
[1728510347210,0.05132814,2373.5,2373.3,0.7536]
[1728510347427,5.96896737,2373.8,2373.3,0.7536]
[1728510347624,0.05132814,2373.4,2373.3,0.7536]
[1728510347841,5.96896737,2373.8,2373.3,0.7536]
[1728510348205,0.05132814,2373.7,2373.3,0.7536]
[1728510348624,5.96896737,2373.8,2373.3,0.7536]
[1728510348830,0.05132814,2373.6,2373.3,0.7536]
[1728510349014,7.28570596,2373.8,2373.3,0.7536]
[1728510349342,5.96896737,2373.8,2373.3,0.7536]
[1728510349542,0.05132814,2373.7,2373.3,0.83786634]
[1728510349742,1.75630737,2373.8,2373.4,4.21335]
[1728510349948,0.05096125,2373.6,2373.4,4.21335]
[1728510350118,2.21450852,2374.0,2373.5,0.08425718]
[1728510350119,1.75630737,2374.0,2373.5,0.08425718]
[1728510350319,1.75630737,2374.4,2373.9,0.8209]
[1728510350517,1.75630737,2374.4,2374.0,4.29643541]
[1728510350733,1.75630737,2374.5,2374.0,4.29643541]
[1728510350906,1.75630737,2374.5,2374.0,4.21219]
[1728510351248,1.75630737,2374.5,2374.2,4.21191]
[1728510352237,1.75630737,2374.6,2374.2,4.21191]
[1728510353342,1.75630737,2374.5,2374.2,4.21191]
[1728510353553,1.75630737,2374.6,2374.2,5.14046812]
[1728510357154,1.75630737,2374.6,2374.3,0.8295]
[1728510357323,0.05076118,2374.5,2374.3,0.8295]
[1728510358280,5.96736737,2374.7,2374.3,0.8295]
[1728510358746,0.05076118,2374.6,2374.3,0.8295]
[1728510367260,0.05076118,2374.6,2374.4,0.08422224]
[1728510367623,5.96719737,2374.8,2374.4,0.08422224]
[1728510367823,0.05086678,2374.5,2374.4,0.08422224]
[1728510368136,0.05086678,2374.5,2374.3,5.72433493]
[1728510368337,5.96719737,2374.8,2374.4,0.08422332]
[1728510368861,5.96702737,2374.9,2374.4,5.39261075]
[1728510369026,1.75630737,2374.8,2374.4,5.39261075]
[1728510369220,5.96702737,2374.9,2374.4,5.39261075]
[1728510369836,1.75630737,2374.8,2374.4,5.39261075]
[1728510370374,5.96702737,2374.9,2374.4,5.39261075]
[1728510370960,1.75630737,2374.8,2374.5,1.19784268]
[1728510371548,5.96702737,2374.9,2374.5,1.19784268]
[1728510372439,0.05086678,2374.8,2374.5,1.19784268]
[1728510372644,1.80717415,2374.8,2374.5,1.19784268]
[1728510373219,0.05086678,2374.8,2374.6,4.9945]
[1728510373366,2.21342744,2375.1,2374.7,4.2952593]
[1728510373367,1.75630737,2375.1,2374.7,4.2952593]
[1728510373674,6.42360744,2375.2,2374.7,4.2952593]
[1728510373675,1.75630737,2375.2,2374.9,0.7813]
[1728510373842,1.75630737,2375.2,2374.9,1.79420871]
[1728510374042,1.75630737,2375.2,2374.9,1.71000493]
[1728510374463,1.75630737,2375.2,2374.9,1.79420872]
[1728510375343,1.75630737,2375.2,2374.9,1.71000493]
[1728510375542,1.75630737,2375.2,2374.9,1.79420877]
[1728510375948,1.75630737,2375.4,2375.2,4.96777]
[1728510376257,1.75630737,2375.5,2375.4,7.20981]
[1728510376451,13.23,2375.8,2375.5,4.96724]
[1728510376452,1.75630737,2375.8,2375.5,4.96724]
[1728510376776,14.98630737,2375.9,2375.5,4.96724]
[1728510377179,13.23,2375.9,2375.5,4.96724]
[1728510377381,13.23,2376.1,2375.6,0.7976]
[1728510377556,13.23,2376.1,2375.6,5.09122076]
[1728510377756,17.43859,2376.1,2375.6,5.09122076]
[1728510378295,17.43859,2376.1,2375.6,6.32130684]
[1728510379182,13.23,2376.1,2375.6,6.32130684]
[1728510379491,13.23,2376.1,2375.7,4.20928]
[1728510380562,13.23,2376.1,2375.7,8.41845]
[1728510381492,4.20855,2376.2,2375.7,4.20917]
[1728510381686,4.20855,2376.2,2375.8,0.62368561]
[1728510382980,3.98535065,2376.3,2375.6,2.02768608]
[1728510383195,1.75630737,2376.5,2375.1,5.03964]
[1728510383196,4.20946,2375.6,2375.1,5.03964]
[1728510383383,0.7879,2375.8,2375.2,4.21017]
[1728510383384,4.20938,2375.7,2375.2,4.21017]
[1728510383689,4.99712,2375.8,2375.2,4.21017]
[1728510383690,0.05211092,2375.5,2375.3,5.21905085]
[1728510383900,4.20922,2375.8,2375.3,5.21905085]
[1728510384058,0.05211092,2375.4,2375.3,5.21905085]
[1728510384259,4.20922,2375.8,2375.3,5.21905085]
[1728510384770,0.05211092,2375.7,2375.3,5.21905085]
[1728510385090,4.20922,2375.8,2375.3,5.08816985]
[1728510385296,0.05211092,2375.6,2375.3,5.08816985]
[1728510385500,4.20922,2375.8,2375.3,5.08816985]
[1728510386093,0.05211092,2375.7,2375.3,5.08816985]
[1728510386460,4.20922,2375.8,2375.3,5.08816985]
[1728510386659,0.05211092,2375.6,2375.3,5.08816985]
[1728510386899,4.20922,2375.8,2375.3,6.03942214]
[1728510387061,0.05211092,2375.5,2375.3,6.03942214]
[1728510387261,4.20922,2375.8,2375.3,6.03942214]
[1728510387467,0.05251083,2375.4,2375.3,6.03942214]
[1728510387678,4.20922,2375.8,2375.3,6.03942214]
[1728510387884,0.05251083,2375.4,2375.3,6.03942214]
[1728510388264,0.05251083,2375.4,2375.3,1.74535229]
[1728510388417,4.20932,2375.7,2375.3,1.74535229]
[1728510388585,0.05251083,2375.4,2375.3,0.7941]
[1728510388787,4.20932,2375.7,2375.3,0.7941]
[1728510388986,0.05251083,2375.4,2375.3,0.7941]
[1728510389295,0.05251083,2375.4,2375.2,8.42023]
[1728510389296,0.7716,2375.7,2375.2,8.42023]
[1728510389515,0.05251083,2375.4,2375.2,8.42023]
[1728510389697,0.7716,2375.7,2375.3,5.052003]
[1728510390806,4.20922,2375.8,2375.4,0.7665]
[1728510392792,4.20928,2375.7,2375.4,0.7665]
[1728510393118,0.7638,2375.6,2375.2,8.42014]
[1728510393416,0.7638,2375.6,2375.2,4.21006]
[1728510393586,0.7638,2375.6,2375.2,5.21160471]
[1728510393778,0.7638,2375.6,2375.3,4.20991]
[1728510402390,0.05246641,2375.5,2375.3,4.20991]
[1728510402725,0.05246641,2375.5,2375.4,4.20981]
[1728510404122,5.00159,2375.8,2375.4,4.20981]
[1728510404297,0.05246641,2375.5,2375.4,4.20981]
[1728510404616,0.05246641,2375.5,2375.4,5.15195147]
[1728510404816,5.00159,2375.8,2375.4,5.15195147]
[1728510405025,0.05246641,2375.5,2375.4,4.20981]
[1728510405184,5.00159,2375.8,2375.4,4.20981]
[1728510405385,0.05246641,2375.5,2375.4,4.20981]
[1728510405627,5.00159,2375.8,2375.4,4.20981]
[1728510405841,0.05246641,2375.5,2375.4,4.20981]
[1728510406122,5.00159,2375.8,2375.4,5.16037062]
[1728510406331,0.05246641,2375.5,2375.4,4.20981]
[1728510406641,0.05246641,2375.5,2375.3,4.29415147]
[1728510406918,5.00159,2375.8,2375.3,4.29415147]
[1728510407138,0.05246641,2375.4,2375.3,4.29415147]
[1728510407338,5.00159,2375.8,2375.3,8.31260826]
[1728510407548,0.05246641,2375.4,2375.3,8.31260826]
[1728510407702,5.00159,2375.8,2375.3,8.31260826]
[1728510408219,0.05241644,2375.7,2375.3,8.31260826]
[1728510408419,5.00159,2375.8,2375.3,8.31260826]
[1728510408647,0.05241644,2375.6,2375.3,4.20996]
[1728510408948,5.00159,2375.8,2375.3,4.20996]
[1728510409109,0.05241644,2375.5,2375.3,4.29415143]
[1728510409305,5.00159,2375.8,2375.3,4.29415143]
[1728510409518,0.05241644,2375.4,2375.3,4.29415143]
[1728510409841,17.43888,2376.0,2375.4,4.20967]
[1728510410138,4.20888,2376.0,2375.5,4.20956]
[1728510411740,4.20888,2376.0,2375.5,4.2937419]
[1728510412746,4.20895,2375.9,2375.4,4.20967]
[1728510413209,4.20895,2375.9,2375.4,5.33637503]
[1728510413411,4.20888,2376.0,2375.4,9.54603503]
[1728510414144,4.20884,2376.0,2375.4,9.54603503]
[1728510415115,4.20884,2376.0,2375.4,5.33636503]
[1728510415345,4.20884,2376.0,2375.4,9.54608503]
[1728510415554,4.20884,2376.0,2375.5,5.2459385]
[1728510415923,4.20884,2376.0,2375.5,5.33011832]
[1728510417229,0.05243864,2375.9,2375.5,5.33011832]
[1728510417845,0.05243864,2375.9,2375.5,5.2459385]
[1728510419550,0.05243864,2375.9,2375.6,5.08889993]
[1728510419712,0.05243864,2375.9,2375.7,1.03348384]
[1728510419916,4.20868,2376.1,2375.6,0.87947993]
[1728510420116,5.96480737,2376.2,2375.6,0.87947993]
[1728510420117,0.05243864,2375.8,2375.6,0.87947993]
[1728510420417,0.05243864,2375.7,2375.6,0.87947993]
[1728510420759,4.20876,2376.0,2375.6,0.87947993]
[1728510420914,0.05243864,2375.7,2375.6,0.87947993]
[1728510421120,4.20876,2376.0,2375.6,1.38837892]
[1728510421322,0.05243864,2375.7,2375.6,1.38837892]
[1728510421956,4.20876,2376.0,2375.6,1.38837892]
[1728510422182,0.05243864,2375.7,2375.6,1.38837892]
[1728510422465,0.05243864,2375.9,2375.6,1.38837892]
[1728510422770,4.20876,2376.0,2375.7,0.55978889]
[1728510422970,0.05243864,2375.8,2375.7,0.55978889]
[1728510423173,4.20876,2376.0,2375.7,0.55978889]
[1728510423347,4.20876,2376.0,2375.6,0.87947993]
[1728510423348,0.05251638,2375.8,2375.6,0.87947993]
[1728510423669,0.05251638,2375.7,2375.6,0.87947993]
[1728510423966,4.20876,2376.0,2375.6,0.87947993]
[1728510424475,0.05251638,2375.9,2375.6,0.87947993]
[1728510425277,0.05251638,2375.9,2375.6,5.08889993]
[1728510425474,4.2085,2376.2,2375.6,5.08889993]
[1728510425475,4.20857,2376.1,2375.7,0.92984099]
[1728510425649,0.05251638,2375.8,2375.7,0.92984099]
[1728510425831,4.20857,2376.1,2375.7,0.92984099]
[1728510426035,0.05251638,2375.8,2375.7,0.92984099]
[1728510426234,4.20857,2376.1,2375.7,0.92984099]
[1728510426475,0.05251638,2375.8,2375.7,0.92984099]
[1728510426669,4.20857,2376.1,2375.7,0.92984099]
[1728510426880,0.05251638,2375.8,2375.7,0.92984099]
[1728510427033,4.20857,2376.1,2375.7,0.92984099]
[1728510427234,0.05251638,2375.8,2375.7,1.69584099]
[1728510427466,4.20857,2376.1,2375.7,1.69584099]
[1728510427657,0.05251638,2375.8,2375.7,1.69584099]
[1728510427857,4.20857,2376.1,2375.7,1.69584099]
[1728510428047,0.05251638,2375.8,2375.7,1.69584099]
[1728510428251,4.20857,2376.1,2375.7,1.69584099]
[1728510428441,0.05251638,2375.8,2375.7,1.90300066]
[1728510428647,4.20857,2376.1,2375.7,1.90300066]
[1728510428947,0.05251638,2375.8,2375.7,1.90300066]
[1728510429160,4.20857,2376.1,2375.7,1.90300066]
[1728510429363,0.05251638,2375.8,2375.7,1.90300066]
[1728510429561,4.20857,2376.1,2375.7,1.90300066]
[1728510429763,0.05251638,2375.8,2375.7,1.90300066]
[1728510429964,4.20857,2376.1,2375.7,1.90300066]
[1728510430177,0.05251638,2375.8,2375.7,1.90300066]
[1728510430339,4.20857,2376.1,2375.7,1.90300066]
[1728510430674,4.20857,2376.1,2375.7,1.69584099]
[1728510430847,0.05251638,2376.0,2375.8,0.59894409]
[1728510436083,0.05251638,2376.0,2375.8,4.80804409]
[1728510436378,4.2085,2376.2,2375.8,4.80804409]
[1728510436565,0.05251638,2375.9,2375.8,4.80804409]
[1728510436747,4.2085,2376.2,2375.8,4.80804409]
[1728510437280,0.05251638,2376.1,2375.8,4.80804409]
[1728510437468,0.05251638,2376.1,2375.9,0.565738]
[1728510437649,0.05251638,2376.1,2375.8,4.80804409]
[1728510438397,0.05251638,2376.1,2375.9,4.29224892]
[1728510439071,0.05265514,2376.0,2375.9,4.29224892]
[1728510439269,4.20822,2376.3,2375.9,4.29224892]
[1728510439476,0.05265514,2376.0,2375.9,4.20892]
[1728510439789,4.20822,2376.3,2375.9,5.18721641]
[1728510439969,0.05265514,2376.0,2375.9,5.18721641]
[1728510440481,0.05265514,2376.0,2375.9,0.97829641]
[1728510440642,4.20841,2376.2,2375.9,0.97829641]
[1728510440848,0.05265514,2376.0,2375.8,4.80804409]
[1728510441086,4.20841,2376.2,2375.8,4.80804409]
[1728510441254,0.05265514,2375.9,2375.8,4.80804409]
[1728510441747,4.20825,2376.3,2375.8,4.89221249]
[1728510441990,0.05265514,2375.9,2375.8,4.89221249]
[1728510442586,4.99106,2376.4,2375.9,4.20892]
[1728510442759,4.99106,2376.4,2375.9,4.77462325]
[1728510443161,4.20824,2376.3,2375.9,4.77462325]
[1728510447309,0.05265514,2376.2,2375.9,4.77462325]
[1728510447509,4.20824,2376.3,2375.9,4.77462325]
[1728510447805,0.05265514,2376.2,2375.9,4.77462325]
[1728510448012,0.05265514,2376.2,2376.0,0.62993488]
[1728510448208,21.84743749,2376.6,2376.0,5.59943488]
[1728510448502,17.43788,2376.5,2376.1,4.2085]
[1728510448664,17.43788,2376.5,2376.2,0.08415422]
[1728510449109,13.23,2376.5,2376.2,4.20839]
[1728510449315,13.23,2376.5,2376.2,5.18075636]
[1728510452688,20.08120269,2376.6,2376.2,5.18075636]
[1728510453996,4.20788,2376.5,2376.2,0.97236636]
[1728510454203,4.20788,2376.5,2376.1,4.20851]
[1728510454527,4.20822,2376.3,2376.1,0.084163]
[1728510454731,4.20822,2376.3,2376.0,3.84496377]
[1728510456925,4.20788,2376.5,2376.0,3.84496377]
[1728510456926,4.20805,2376.4,2376.0,3.84496377]
[1728510457499,4.20841,2376.2,2375.8,4.20905]
[1728510457804,4.96828,2376.3,2375.8,4.97675]
[1728510459231,4.96828,2376.3,2375.9,0.07378767]
[1728510461446,4.20838,2376.3,2375.9,0.07378767]
[1728510462295,0.05308807,2376.2,2375.9,0.07378767]
[1728510462602,4.20838,2376.3,2375.9,0.99974444]
[1728510462805,0.05308807,2376.1,2375.9,0.99974444]
[1728510463004,4.20838,2376.3,2375.9,0.99974444]
[1728510463524,0.0531269,2376.2,2375.9,0.92595677]
[1728510463826,4.20838,2376.3,2375.9,0.92595677]
[1728510464033,0.0531269,2376.1,2375.9,0.92595677]
[1728510464240,4.20838,2376.3,2375.9,0.92595677]
[1728510464406,0.0531269,2376.0,2375.8,9.18578]
[1728510464607,8.41669,2376.3,2375.8,4.97673]
[1728510464840,0.0531269,2375.9,2375.8,4.97673]
[1728510464996,4.20831,2376.3,2375.8,9.18576]
[1728510464997,0.78,2376.2,2375.8,9.18576]
[1728510465199,0.78,2376.2,2375.8,0.7677]
[1728510465539,0.0531269,2376.1,2375.8,4.97674]
[1728510465734,0.0531269,2376.1,2375.8,9.07938826]
[1728510465900,1.89271959,2376.1,2375.8,9.07938826]
[1728510466098,1.83959269,2376.1,2375.8,9.07938826]
[1728510467120,1.83959269,2376.1,2375.8,13.28840826]
[1728510467526,0.0531269,2376.0,2375.8,13.28840826]
[1728510468204,0.0531269,2376.0,2375.8,12.52070826]
[1728510468407,0.0531269,2376.0,2375.8,8.41806]
[1728510473663,1.83959269,2376.1,2375.8,8.41806]
[1728510474967,0.0531269,2376.0,2375.8,8.41806]
[1728510475260,1.83959269,2376.1,2375.8,8.41806]
[1728510475965,1.83959269,2376.1,2375.8,4.20902]
[1728510476361,0.0531269,2376.0,2375.8,4.20902]
[1728510478452,0.0531269,2376.0,2375.6,38.805]
[1728510478755,0.0531269,2376.0,2375.7,4.20919]
[1728510479128,0.7508,2375.9,2375.7,4.20919]
[1728510479471,0.7508,2375.7,2375.5,0.87383321]
[1728510479771,0.7508,2375.7,2375.2,0.06316119]
[1728510479772,4.20971,2375.5,2375.2,0.06316119]
[1728510479925,2.63919269,2375.4,2375.0,4.21052]
[1728510480124,2.63919269,2375.4,2375.1,0.94607975]
[1728510480363,0.05277727,2375.3,2375.1,0.94607975]
[1728510480940,2.63919269,2375.4,2375.1,0.94607975]
[1728510481539,0.05277727,2375.3,2375.1,0.94607975]
[1728510488343,0.05277727,2375.3,2375.2,0.51565997]
[1728510489091,1.83959269,2375.5,2375.2,0.51565997]
[1728510489249,0.05261071,2375.4,2375.1,10.20333488]
[1728510491181,0.05261071,2375.4,2375.1,10.14016975]
[1728510491800,0.05261071,2375.4,2375.1,10.2033358]
[1728510492112,1.83959269,2375.5,2375.1,10.14016975]
[1728510492270,0.05219991,2375.4,2375.1,10.14016975]
[1728510492883,0.05219991,2375.4,2375.3,5.08044517]
[1728510493110,1.83959269,2375.9,2375.3,5.08044517]
[1728510493111,1.83959269,2375.9,2375.6,4.20945]
[1728510493451,1.83959269,2375.9,2375.6,4.99875]
[1728510493452,0.05039199,2375.8,2375.6,4.99875]
[1728510493581,0.05039199,2375.8,2375.6,4.99868]
[1728510493783,0.05039199,2375.8,2375.6,9.20804]
[1728510493985,0.05039199,2375.8,2375.6,4.99866]
[1728510495279,0.05039199,2375.8,2375.6,5.50694397]
[1728510495484,1.83959269,2376.0,2375.7,0.08417264]
[1728510496038,0.05039199,2375.9,2375.7,4.29345264]
[1728510496521,0.05039199,2375.8,2375.7,4.29345264]
[1728510496704,1.83959269,2376.0,2375.7,4.29345264]
[1728510496894,0.05039199,2375.9,2375.7,4.29345264]
[1728510497090,0.05039199,2375.9,2375.7,5.2735193]
[1728510497297,0.05039199,2375.9,2375.7,5.18934666]
[1728510497612,1.83959269,2376.1,2375.7,9.39854666]
[1728510497815,0.05039199,2375.8,2375.7,5.18926666]
[1728510498010,1.83959269,2376.1,2375.7,9.39845666]
[1728510498187,1.83959269,2376.1,2375.7,4.20919]
[1728510498188,0.05039199,2375.8,2375.7,4.20919]
[1728510498388,1.83959269,2376.1,2375.7,4.20919]
[1728510498913,0.05039199,2376.0,2375.7,4.20919]
[1728510500545,0.05039199,2376.0,2375.9,13.15287122]
[1728510500717,4.20728,2376.9,2376.5,0.8108]
[1728510500718,1.83959269,2376.9,2376.5,0.8108]